{"text_format":"1","workbook":"xlsx","n_sheets":1,"sheets":["price bid "],"not_rendered":{"charts":0,"images":0,"macros":1,"external_links":0,"defined_names":0,"comments":0,"pivot_tables":0},"unopened":[],"bounds":{"document_bytes":16777216,"sheet_cells":100000,"rows_first":2000,"rows_last":500,"rows_between":2000,"halvings":0,"cell_chars":16384,"cell_head_chars":4096},"cells_cut":0,"cells_raw":0,"read":"whole","date_system":"1900"}

{"sheet":"price bid ","index":0,"n_rows":30,"n_cols":7,"rows_kept":30,"cut":false,"hidden":false,"merged":[[26,1,26,6],[24,1,24,6],[25,1,25,6],[0,0,0,6],[3,0,3,6],[1,0,1,6],[2,0,2,6],[4,0,4,2],[4,4,4,6],[22,2,22,6]]}
["    BHARAT HEAVY ELECTRICAL LIMITED , JHANSI              "]
["FACTORY CIVIL DEPARTMENT"]
["PRICE BID (JS 146)"]
["Name of work -Repair & Maintenance of Boundary wall of Factory side."]
["Tender Enq No-FCX/TW/21/16"]
["Sl. No.","Description of Work","% Allocation (Item-wise)","Unit ","Quantity ","Rate per Unit (in Rs.)","Amount (in Rs.)"]
[1,"Earth work in excavation by mechanical means (Hydraulic excavator) / manual means over areas (exceeding 30cm in depth. 1.5 m in width as well as 10 sqm on plan) including disposal of excavated earth, lead upto 50m and lift upto 1.5m, disposed earth to be levelled and neatly dressed (All kinds of soil)",0.26745357764794725,"Cum",13,{"$f":"ROUND(G7/E7,2)","v":0},{"$f":"ROUND($G$22*C7%,2)","v":0}]
[2,"Providing and laying in position cement concrete of specified grade excluding the cost of centering and shuttering - All work up to plinth level : 1:3:6 (1 Cement : 3 coarse sand (zone-III): 6 graded stone aggregate 40 mm nominal size).",12.70585398849428,"Cum",24,{"$f":"ROUND(G8/E8,2)","v":0},{"$f":"ROUND($G$22*C8%,2)","v":0}]
[3,"Providing and laying cement concrete in retaining walls, return walls, walls (any thickness) including attached pilasters, columns, piers, abutments, pillars, posts, struts, buttresses, string or lacing courses, parapets, coping, bed blocks, anchor blocks, plain window sills, fillets, sunken floor etc., up to floor five level, excluding the cost of centering, shuttering and finishing :1:2:4 (1 Cement : 2 coarse sand : 4 graded stone aggregate 20 mm nominal size).",2.1077975046377841,"Cum",3,0,0]
[4,"Centering and shuttering including strutting, propping etc. and removal of form for all heights :Walls (any thickness) including attached pilasters, butteresses, plinth and string courses etc.",0.84441400412316447,"Sqm",14,0,0]
[5,"Providing and laying in position specified grade of reinforced cement concrete, excluding the cost of centering, shuttering, finishing and reinforcement - All work up to plinth level :  1:2:4 (1 cement : 2 coarse sand : 4 graded stone aggregate 20 mm nominal size) ",13.247886269790722,"Cum",23,0,0]
[6," Random rubble masonry with hard stone in foundation and plinth including levelling up with cement concrete 1:6:12 (1 cement : 6 coarse sand : 12 graded stone aggregate 20 mm nominal size) upto plinth level with :  Cement mortar 1:6 (1 cement : 6 coarse sand)  Stone will be provided by BHEL free of cost .",1.7279900659866381,"Cum",5,0,0]
[7,"Random rubble masonry with hard stone in superstructure above plinth level andupto floor five level, including leveling up with cement concrete 1:6:12 (1 cement: 6 coarse sand : 12 graded stone aggregate 20 mm nominal size) at window sills,ceiling level and the like. Cement mortar 1:6 (1 cement : 6 coarse sand. Stone will be provided by BHEL free of cost .",12.988629363915077,"Cum",27,0,0]
[8,"Random rubble masonry with hard stone in superstructure above plinth level andupto floor five level, including leveling up with cement concrete 1:6:12 (1 cement: 6 coarse sand : 12 graded stone aggregate 20 mm nominal size) at window sills,ceiling level and the like. Cement mortar 1:6 (1 cement : 6 coarse sand.",27.206481806508563,"Cum",40,0,0]
[9,"Structural steel work riveted, bolted or welded in built up sections,\ntrusses and framed work, including cutting, hoisting, fixing in position and applying a priming coat of approved steel primer all complete. (Steel will be free issued by department)",0.59745210590596509,"Kg",180,0,0]
[10,"Pointing on stone work with cement mortar 1:3 (1 cement : 3 fine Raised and cut pointing",13.377987607638488,"Sqm",280,0,0]
[11,"Demolishing stone rubble masonry manually/ by mechanical means including stacking of serviceable material and disposal of unserviceable material within 50 metres lead as per direction of Engineer-in-charge :cement mortar",5.9139525876932,"Cum",36,0,0]
[12,"Removing mortar from and cleaning stones and concrete articles(net quantity of stacks of cleaned materials will be measured):In cement mortar",2.0897592729953969,"cum",45,0,0]
[13,"Providing and fixing concertina coil fencing with punched tape concertina coil 600 mm dia 10 metre openable length ( total length 90 m), having 50 nos rounds per 6 metre length, upto 3 m height of\nwall with existing angle iron 'Y' shaped placed 2.4 m or 3.00 m apart and with 9 horizontal R.B.T. reinforced barbed wire, stud tied with G.I. staples and G.I. clips to retain horizontal, including  necessary bolts or G.I. barbed wire tied to angle iron, all complete as per direction of Engineer-in-charge, with reinforced barbed tape(R.B.T.) / Spring core (2.5mm thick) wire of high tensile strength of 165 kg/ sq.mm with tape (0.52 mm thick) and weight 43.478 gm/ metre (cost of M.S. angle, C.C. blocks shall be paid separately)",2.8226083743588899,"Meter",80,0,0]
[14,"Reinforcement with TMT Bar",1.6515525897840202,"Kg",920,0,0]
[15," Not covered in above but covered in  DSR-2016",2.4501808805198699,"LS",15000,0,{"$f":"ROUND($G$22*C21%,2)","v":0}]
[null,"Total ",1]
[null,"IN WORDS",{"$f":"rup(G22)","v":0}]
[null,"Note -GST extra as applicable"]
[null,"1. Bidder has to quote in above unlocked cell (G-22) only. Item rate shall be calculated automatically. Calculated item rates upto four decimal points may be adjusted w.r.t. gross total amount and it shall be the itemwise final rate for  execution of contract and all other purposes."]
[null,"2. Quoted gross total amount should be considered only if quoted in this excel sheet and print out of this should only be considered for evaluation.  If Price is quoted in any other format other than the Excel Sheet enclosed to the NIT , the offer of the bidder  will be rejected"]
[null,"3.During the execution , the quantity of various items may vary to any extent depending on requirement of work/site and as per discretion of BHEL."]
[]
[]
[null,null,null,"(Signature and Seal of  Contractor  )"]